bitfinex/quotes_BTCUSD_20230108
["timestamp","ask_amount","ask_price","bid_price","bid_amount"]
[1673167097791,3.03069385,16969.0,16968.0,3.23174002]
[1673167098064,2.43407399,16969.0,16968.0,3.23162563]
[1673167098300,3.0306943,16969.0,16968.0,3.23162563]
[1673167098549,2.43407399,16969.0,16968.0,3.23162563]
[1673167099868,3.03069508,16969.0,16968.0,3.23168605]
[1673167100093,3.0306939,16969.0,16968.0,3.23168605]
[1673167100358,3.03069502,16969.0,16968.0,3.23162563]
[1673167100622,2.43407399,16969.0,16968.0,3.23162563]
[1673167100870,2.43407399,16969.0,16968.0,3.23168605]
[1673167101182,3.03069679,16969.0,16968.0,3.23162563]
[1673167102006,3.03069679,16969.0,16968.0,3.23168605]
[1673167102270,3.03069679,16969.0,16968.0,3.23162563]
[1673167103612,3.03069679,16969.0,16968.0,3.23128887]
[1673167105663,3.03069679,16969.0,16968.0,3.23095211]
[1673167106429,2.43407399,16969.0,16968.0,3.23095211]
[1673167106957,3.03073332,16969.0,16968.0,3.23101253]
[1673167107178,3.03073332,16969.0,16968.0,3.23095211]
[1673167107690,3.03073332,16969.0,16968.0,3.93186445]
[1673167108212,3.03073332,16969.0,16968.0,3.93192487]
[1673167108433,3.03073332,16969.0,16968.0,3.93186445]
[1673167108721,3.03073332,16969.0,16968.0,3.93152769]
[1673167109775,3.03073332,16969.0,16968.0,3.93119093]
[1673167110028,2.43407399,16969.0,16968.0,3.93119093]
[1673167110301,2.43407399,16969.0,16968.0,4.53781393]
[1673167110518,2.43407399,16969.0,16968.0,3.93085417]
[1673167110773,2.43407399,16969.0,16968.0,3.22960507]
[1673167111795,2.43407399,16969.0,16968.0,3.22926831]
[1673167112056,3.03082564,16969.0,16968.0,3.22926831]
[1673167112334,3.03082564,16969.0,16968.0,3.22932873]
[1673167112589,3.03083482,16969.0,16968.0,3.22926831]
[1673167112859,2.43407399,16969.0,16968.0,3.22893155]
[1673167113834,2.43407399,16969.0,16968.0,3.22859754]
[1673167114764,2.43407399,16969.0,16968.0,3.22826048]
[1673167115767,2.43407399,16969.0,16968.0,3.22792042]
[1673167116155,2.43407399,16969.0,16968.0,3.22798084]
[1673167116405,2.43407399,16969.0,16968.0,3.22792042]
[1673167116684,2.43407399,16969.0,16968.0,3.22758036]
[1673167117501,2.43407399,16969.0,16968.0,3.22764078]
[1673167117774,2.43407399,16969.0,16968.0,3.22758036]
[1673167119653,2.43407399,16969.0,16968.0,3.22764078]
[1673167120318,2.43407399,16969.0,16968.0,3.22758036]
[1673167121926,2.43407399,16969.0,16968.0,3.22724955]
[1673167122184,2.43407399,16969.0,16968.0,3.92849865]
[1673167122697,2.43407399,16969.0,16968.0,4.53478764]
[1673167122962,2.43407399,16969.0,16968.0,3.92822506]
[1673167123214,2.43407399,16969.0,16968.0,4.53484806]
[1673167123483,2.43407399,16969.0,16968.0,3.92822506]
[1673167123729,3.03109599,16969.0,16968.0,3.22664195]
[1673167124000,3.03109599,16969.0,16968.0,3.92789105]
[1673167124526,3.03109599,16969.0,16968.0,3.22664195]
[1673167124796,3.03109599,16969.0,16968.0,3.22631114]
[1673167125046,3.03109599,16969.0,16968.0,3.22625072]
[1673167125813,2.43407399,16969.0,16968.0,3.22591671]
[1673167126089,3.03106011,16969.0,16968.0,3.22591671]
[1673167126332,3.03106314,16969.0,16968.0,3.22591671]
[1673167126887,3.03106314,16969.0,16968.0,3.2255859]
[1673167127635,3.03106314,16969.0,16968.0,3.22525189]
[1673167128643,3.03106314,16969.0,16968.0,3.22492108]
[1673167129791,3.03106314,16969.0,16968.0,3.22458707]
[1673167130687,3.03106314,16969.0,16968.0,3.22425306]
[1673167130978,3.03106314,16969.0,16968.0,3.22431348]
[1673167131236,3.03106314,16969.0,16968.0,3.22425306]
[1673167131749,3.03106314,16969.0,16968.0,3.223913]
[1673167132617,3.03106314,16969.0,16968.0,3.22357294]
[1673167132878,3.03106314,16969.0,16968.0,3.22363336]
[1673167133124,3.03106314,16969.0,16968.0,3.22357294]
[1673167133927,3.03106314,16969.0,16968.0,3.22323288]
[1673167134178,2.43407399,16969.0,16968.0,3.2232933]
[1673167134442,3.03103755,16969.0,16968.0,3.22323288]
[1673167134690,3.03090819,16969.0,16968.0,3.54525755]
[1673167135230,3.03090819,16969.0,16968.0,3.22295324]
[1673167135491,3.03090819,16969.0,16968.0,3.22289282]
[1673167135736,3.03090819,16969.0,16968.0,3.22255201]
[1673167135979,3.03093541,16969.0,16968.0,3.22255201]
[1673167136284,2.43394463,16969.0,16968.0,3.22255201]
[1673167136525,3.03093745,16969.0,16968.0,3.22255201]
[1673167136775,3.03093745,16969.0,16968.0,3.34780402]
[1673167137289,2.43394463,16969.0,16968.0,3.34780402]
[1673167137807,2.43394463,16969.0,16968.0,3.34746321]
[1673167138392,2.43394463,16969.0,16968.0,3.34752363]
[1673167138645,2.43394463,16969.0,16968.0,3.3471224]
[1673167138898,2.39852794,16969.0,16968.0,3.3471224]
[1673167139149,2.43394463,16969.0,16968.0,3.22152958]
[1673167139652,2.43394463,16969.0,16968.0,3.22118877]
[1673167140823,2.43394463,16969.0,16968.0,3.22084796]
[1673167141821,2.43394463,16969.0,16968.0,3.22050715]
[1673167142611,2.43394463,16969.0,16968.0,3.22016634]
[1673167143667,2.43394463,16969.0,16968.0,3.21982553]
[1673167144855,2.43394463,16969.0,16968.0,3.21948472]
[1673167145658,2.43394463,16969.0,16968.0,3.21914391]
[1673167146701,2.43394463,16969.0,16968.0,3.2188031]
[1673167147716,2.43394463,16969.0,16968.0,3.21846229]
[1673167148735,2.43394463,16969.0,16968.0,3.21812148]
[1673167149512,2.43394463,16969.0,16968.0,3.2181819]
[1673167149753,2.43394463,16969.0,16968.0,3.21778067]
[1673167150555,2.43394463,16969.0,16968.0,3.21784109]
[1673167150816,2.43394463,16969.0,16968.0,3.21743986]
[1673167151898,2.43394463,16969.0,16968.0,3.21709905]
[1673167152813,2.43394463,16969.0,16968.0,3.21675824]
[1673167153646,2.43394463,16969.0,16968.0,3.21637433]
[1673167154905,2.43394463,16969.0,16968.0,3.21599042]
[1673167155714,2.43394463,16969.0,16968.0,3.21566693]
[1673167155978,2.43394463,16969.0,16968.0,3.21560651]
[1673167156753,2.43394463,16969.0,16968.0,3.2152226]
[1673167157825,2.43394463,16969.0,16968.0,3.21483869]
[1673167158691,2.43394463,16969.0,16968.0,3.21445478]
[1673167159422,2.43394463,16969.0,16968.0,3.2145152]
[1673167159683,2.43394463,16969.0,16968.0,3.21407087]
[1673167160932,2.43394463,16969.0,16968.0,3.21368696]
[1673167161704,2.43394463,16969.0,16968.0,3.21330305]
[1673167162766,2.43394463,16969.0,16968.0,3.21297956]
[1673167163022,2.43394463,16969.0,16968.0,3.21291914]
[1673167163884,2.43394463,16969.0,16968.0,3.21259565]
[1673167164657,2.43394463,16969.0,16968.0,3.21221174]
[1673167164961,2.43394463,16969.0,16968.0,3.21215132]
[1673167165733,2.43394463,16969.0,16968.0,3.21176741]
[1673167166836,2.43394463,16969.0,16968.0,3.2113835]
[1673167167816,2.43394463,16969.0,16968.0,3.21099959]
[1673167168799,2.43394463,16969.0,16968.0,3.21061568]
[1673167169859,2.43394463,16969.0,16968.0,3.21023177]
[1673167170603,2.43394463,16969.0,16968.0,3.20984786]
[1673167171626,2.43394463,16969.0,16968.0,3.20946395]
[1673167172912,2.43394463,16969.0,16968.0,3.20919036]
[1673167173156,2.43394463,16969.0,16968.0,3.20912994]
[1673167173653,2.43394463,16969.0,16968.0,3.20877534]
[1673167174651,2.43394463,16969.0,16968.0,3.20842074]
[1673167175700,2.43394463,16969.0,16968.0,3.20806614]
[1673167176775,2.43394463,16969.0,16968.0,3.20777196]
[1673167177035,2.43394463,16969.0,16968.0,3.20771154]
[1673167177839,2.43394463,16969.0,16968.0,3.20738073]
[1673167178700,2.43394463,16969.0,16968.0,3.20704672]
[1673167179780,2.43394463,16969.0,16968.0,3.2067159]
[1673167180790,2.43394463,16969.0,16968.0,3.20638189]
[1673167181971,2.43394463,16969.0,16968.0,3.20605107]
[1673167182722,2.43394463,16969.0,16968.0,3.20571706]
[1673167183606,2.43394463,16969.0,16968.0,3.20538624]
[1673167184641,2.43394463,16969.0,16968.0,3.20505223]
[1673167185395,2.43394463,16969.0,16968.0,3.20511265]
[1673167185663,2.43394463,16969.0,16968.0,3.20477864]
[1673167185930,2.43394463,16969.0,16968.0,3.20471822]
[1673167186848,2.43394463,16969.0,16968.0,3.2043874]
[1673167187609,2.43394463,16969.0,16968.0,3.20405339]
[1673167188648,2.43394463,16969.0,16968.0,3.20378299]
[1673167188907,2.43394463,16969.0,16968.0,3.20372257]
[1673167189692,2.43394463,16969.0,16968.0,3.20344898]
[1673167190678,2.43394463,16969.0,16968.0,3.52349846]
[1673167190679,3.03094713,16969.0,16968.0,3.52349846]
[1673167190957,3.03094713,16969.0,16968.0,4.22474756]
[1673167192009,3.03094713,16969.0,16968.0,4.22468714]
[1673167192756,3.03094713,16969.0,16968.0,4.22435632]
[1673167192999,3.03094713,16969.0,16968.0,4.22441674]
[1673167193776,3.03094713,16969.0,16968.0,4.22408273]
[1673167194502,3.03094713,16969.0,16968.0,3.90364201]
[1673167194773,3.03094713,16969.0,16968.0,3.90331119]
[1673167195861,3.03094713,16969.0,16968.0,3.90297718]
[1673167196863,3.03094713,16969.0,16968.0,3.90264636]
[1673167197724,3.03094713,16969.0,16968.0,3.90231235]
[1673167198541,3.03094713,16969.0,16968.0,4.50893535]
[1673167198810,3.03094713,16969.0,16968.0,3.90198153]
[1673167199079,3.03094713,16969.0,16968.0,4.34219088]
[1673167199899,3.03094713,16969.0,16968.0,4.34185687]
[1673167200404,3.03094713,16969.0,16968.0,4.34179645]
[1673167200661,3.03094713,16969.0,16968.0,4.34146563]
[1673167200929,3.03094713,16969.0,16968.0,3.64021653]
[1673167201204,3.03094713,16969.0,16968.0,3.2000676]
[1673167201736,3.03094713,16969.0,16968.0,3.19973359]
[1673167202716,3.03094713,16969.0,16968.0,3.19940277]
[1673167202972,3.03080515,16969.0,16968.0,3.19940277]
[1673167203197,2.43394463,16969.0,16968.0,3.19940277]
[1673167203911,3.03080179,16969.0,16968.0,3.19906876]
[1673167203912,2.43394463,16969.0,16968.0,3.19906876]
[1673167204755,2.43394463,16969.0,16968.0,3.19873794]
[1673167205027,2.43394463,16969.0,16968.0,3.19879836]
[1673167205280,3.03081323,16969.0,16968.0,3.19879836]
[1673167205783,3.03081323,16969.0,16968.0,3.19846435]
[1673167206648,3.03081323,16969.0,16968.0,3.19807311]
[1673167209016,2.43394463,16969.0,16968.0,3.19807311]
[1673167209214,3.03083191,16969.0,16968.0,3.19807311]
[1673167209766,2.43394463,16969.0,16968.0,3.19807311]
[1673167210011,2.43394463,16969.0,16968.0,3.1977391]
[1673167210273,2.43394463,16969.0,16968.0,3.19779952]
[1673167210765,2.43394463,16969.0,16968.0,3.19735516]
[1673167211256,2.43394463,16969.0,16968.0,3.19741558]
[1673167211559,2.43394463,16969.0,16968.0,3.19735516]
[1673167212010,2.43394463,16969.0,16968.0,3.19697442]
[1673167212502,2.43394463,16969.0,16968.0,3.19703484]
[1673167212753,2.43394463,16969.0,16968.0,3.1966509]
[1673167213273,2.43394463,16969.0,16968.0,3.19659048]
[1673167213542,3.0309209,16969.0,16968.0,3.51635139]
[1673167213848,3.0309209,16969.0,16968.0,3.51597065]
[1673167214697,3.0309209,16969.0,16968.0,3.51558671]
[1673167214953,3.0309209,16969.0,16968.0,3.19588622]
[1673167215754,3.0309209,16969.0,16968.0,3.19550548]
[1673167216019,3.0309209,16969.0,16968.0,3.19544506]
[1673167216816,3.0309209,16969.0,16968.0,3.19506112]
[1673167217837,3.0309209,16969.0,16968.0,3.19468038]
[1673167218818,3.0309209,16969.0,16968.0,3.19429644]
[1673167219579,3.0309209,16969.0,16968.0,3.19435686]
[1673167219840,3.0309209,16969.0,16968.0,3.19397612]
[1673167220619,3.0309209,16969.0,16968.0,3.19353176]
[1673167220880,3.0309209,16969.0,16968.0,3.19359218]
[1673167221716,3.0309209,16969.0,16968.0,3.19321144]
[1673167222731,3.0309209,16969.0,16968.0,3.1928275]
[1673167223240,3.0309209,16969.0,16968.0,3.19276708]
[1673167223780,3.0309209,16969.0,16968.0,3.19238634]
[1673167224804,3.0309209,16969.0,16968.0,3.1920024]
[1673167225686,3.0309209,16969.0,16968.0,3.19162166]
[1673167226723,3.0309209,16969.0,16968.0,3.19123772]
[1673167227776,3.0309209,16969.0,16968.0,3.19066333]
[1673167228031,3.0309209,16969.0,16968.0,3.19060291]
[1673167228637,3.0309209,16969.0,16968.0,3.19027939]
[1673167228890,2.99550421,16969.0,16968.0,3.19021897]
[1673167229142,3.0309209,16969.0,16968.0,3.19021897]
[1673167229726,3.0309209,16969.0,16968.0,3.18983503]
[1673167229984,3.0309209,16969.0,16968.0,3.18989545]
[1673167230247,3.0309209,16969.0,16968.0,3.18983503]
[1673167231253,3.0309209,16969.0,16968.0,3.18989545]
[1673167231743,3.0309209,16969.0,16968.0,3.18945429]
[1673167232760,3.0309209,16969.0,16968.0,3.18907035]
[1673167233764,3.04793274,16969.0,16968.0,3.18868961]
[1673167234020,3.02205795,16969.0,16968.0,3.18868961]
[1673167234719,3.05995881,16969.0,16968.0,3.18830567]
[1673167235787,3.05995881,16969.0,16968.0,3.18792493]
[1673167236391,3.0417577,16969.0,16968.0,3.18792493]
[1673167236647,3.05980587,16969.0,16968.0,3.18754099]
[1673167237534,3.05980587,16969.0,16968.0,3.18760141]
[1673167237785,3.05980587,16969.0,16968.0,3.18716025]
[1673167238745,3.05980587,16969.0,16968.0,3.18677632]
[1673167239806,3.05980587,16969.0,16968.0,3.18639558]
[1673167240607,3.05980587,16969.0,16968.0,3.18596253]
[1673167240862,3.05980587,16969.0,16968.0,3.1855786]
[1673167241374,2.4628296,16969.0,16968.0,3.1855786]
[1673167241881,2.4628296,16969.0,16968.0,3.18519786]
[1673167242700,2.4628296,16969.0,16968.0,3.18481392]
[1673167243696,2.4628296,16969.0,16968.0,3.18443318]
[1673167244304,3.05985262,16969.0,16968.0,3.18443318]
[1673167244553,2.4628296,16969.0,16968.0,3.18443318]
[1673167244800,2.4628296,16969.0,16968.0,3.18404924]
[1673167245617,3.0599901,16969.0,16968.0,3.50254998]
[1673167245864,3.0599901,16969.0,16968.0,3.50216924]
[1673167246412,3.0599901,16969.0,16968.0,3.50210882]
[1673167246663,2.4628296,16969.0,16968.0,3.18328456]
[1673167247651,2.4628296,16969.0,16968.0,3.18290382]
[1673167248711,2.4628296,16969.0,16968.0,3.18256981]
[1673167249082,2.4628296,16969.0,16968.0,3.18263023]
[1673167249570,2.4628296,16969.0,16968.0,3.18256981]
[1673167249815,2.4628296,16969.0,16968.0,3.18218585]
[1673167250679,2.4628296,16969.0,16968.0,3.18180508]
[1673167251858,2.4628296,16969.0,16968.0,3.18142112]
[1673167252403,2.4628296,16969.0,16968.0,3.18148154]
[1673167252687,2.4628296,16969.0,16968.0,3.18142112]
[1673167253683,2.4628296,16969.0,16968.0,3.18103716]
[1673167254742,2.4628296,16969.0,16968.0,3.18065639]
[1673167255295,2.4628296,16969.0,16968.0,3.18071681]
[1673167255852,2.4628296,16969.0,16968.0,3.18033285]
[1673167257409,2.4628296,16969.0,16968.0,3.18027243]
[1673167257670,2.4628296,16969.0,16968.0,3.17988847]
[1673167258006,2.4628296,16969.0,16968.0,3.17994889]
[1673167258715,2.4628296,16969.0,16968.0,3.17956812]
[1673167259243,2.4628296,16969.0,16968.0,3.1795077]
[1673167259754,2.4628296,16969.0,16968.0,3.17918416]
[1673167260357,2.4628296,16969.0,16968.0,3.17912374]
[1673167260656,2.4628296,16969.0,16968.0,3.17918416]
[1673167260911,2.4628296,16969.0,16968.0,3.17874297]
[1673167261618,2.4628296,16969.0,16968.0,3.17880339]
[1673167261884,2.4628296,16969.0,16968.0,3.17835901]
[1673167262658,2.4628296,16969.0,16968.0,3.17797824]
[1673167263781,2.4628296,16969.0,16968.0,3.17759428]
[1673167264592,2.4628296,16969.0,16968.0,3.1776547]
[1673167264836,2.4628296,16969.0,16968.0,3.17721351]
[1673167265624,2.4628296,16969.0,16968.0,3.17727393]
[1673167266134,2.4628296,16969.0,16968.0,3.17682955]
[1673167266660,2.4628296,16969.0,16968.0,3.1765092]
[1673167266938,2.4628296,16969.0,16968.0,3.17644878]
[1673167267738,2.4628296,16969.0,16968.0,3.17612524]
[1673167268680,2.4628296,16969.0,16968.0,3.17574447]
[1673167269746,2.4628296,16969.0,16968.0,3.17568405]
[1673167269988,2.4628296,16969.0,16968.0,3.17530009]
[1673167270705,2.4628296,16969.0,16968.0,3.17491932]
[1673167271696,2.4628296,16969.0,16968.0,3.17453536]
[1673167272845,2.4628296,16969.0,16968.0,3.17415458]
[1673167273373,2.4628296,16969.0,16968.0,3.174215]
[1673167273672,2.4628296,16969.0,16968.0,3.17415458]
[1673167273929,2.4628296,16969.0,16968.0,3.17377062]
[1673167274447,2.4628296,16969.0,16968.0,3.17383104]
[1673167274697,2.4628296,16969.0,16968.0,3.17369203]
[1673167275432,2.4628296,16969.0,16968.0,3.17375245]
[1673167275688,2.4628296,16969.0,16968.0,3.17336849]
[1673167275953,2.4628296,16969.0,16968.0,3.17330807]
[1673167276750,2.4628296,16969.0,16968.0,3.1732899]
[1673167277772,2.4628296,16969.0,16968.0,3.17290594]
[1673167278032,2.4628296,16969.0,16968.0,3.17284552]
[1673167278625,2.4628296,16969.0,16968.0,3.17276693]
[1673167279922,2.4628296,16969.0,16968.0,3.17238297]
[1673167280734,2.4628296,16969.0,16968.0,3.17230438]
[1673167281602,2.4628296,16969.0,16968.0,3.1723648]
[1673167281748,2.4628296,16969.0,16968.0,3.17192042]
[1673167282507,2.4628296,16969.0,16968.0,3.17198084]
[1673167282765,2.4628296,16969.0,16968.0,3.17190225]
[1673167283771,2.4628296,16969.0,16968.0,3.17151829]
[1673167284801,2.4628296,16969.0,16968.0,3.17137928]
[1673167285310,2.4628296,16969.0,16968.0,3.1714397]
[1673167285840,2.4628296,16969.0,16968.0,3.17099532]
[1673167286081,2.4628296,16969.0,16968.0,3.17105574]
[1673167286358,2.4628296,16969.0,16968.0,3.17099532]
[1673167286859,2.4628296,16969.0,16968.0,3.17091673]
[1673167287362,2.4628296,16969.0,16968.0,3.17097715]
[1673167287865,2.4628296,16969.0,16968.0,3.17059319]
[1673167288838,2.4628296,16969.0,16968.0,3.1705146]
[1673167296591,2.4628296,16969.0,16968.0,3.17045418]
[1673167301057,2.4628296,16969.0,16968.0,3.1705146]
[1673167302372,2.4628296,16969.0,16968.0,3.17045418]
[1673167306261,2.4628296,16969.0,16968.0,3.1705146]
[1673167306764,2.4628296,16969.0,16968.0,3.17045418]
[1673167307253,2.4628296,16969.0,16968.0,3.1705146]
[1673167307501,2.4628296,16969.0,16968.0,3.17045418]
[1673167308439,2.4628296,16969.0,16968.0,3.1705146]
[1673167308724,2.4628296,16969.0,16968.0,3.17045418]
[1673167309229,2.46095983,16969.0,16968.0,3.17045418]
[1673167311563,2.46095983,16969.0,16968.0,3.17035523]
[1673167313507,2.46095983,16969.0,16968.0,3.17041565]
[1673167313774,2.46095983,16969.0,16968.0,3.17035523]
[1673167319178,2.42554314,16969.0,16968.0,3.17035523]
[1673167319354,2.46095983,16969.0,16968.0,3.17035523]
[1673167320329,2.46095983,16969.0,16968.0,3.17041565]
[1673167320653,2.46095983,16969.0,16968.0,3.17035523]
[1673167330313,2.46095983,16969.0,16968.0,3.17041565]
[1673167330498,2.46095983,16969.0,16968.0,3.17035523]
[1673167332920,2.46095983,16969.0,16968.0,3.17024487]
[1673167340174,2.46095983,16969.0,16968.0,3.17030529]
[1673167340434,2.46095983,16969.0,16968.0,3.17024487]
[1673167343634,2.46095983,16969.0,16968.0,3.17030529]
[1673167344149,2.46095983,16969.0,16968.0,3.17024487]
[1673167347646,2.46095983,16969.0,16968.0,3.17030529]
[1673167347949,2.46095983,16969.0,16968.0,3.17024487]
[1673167349533,2.46095983,16969.0,16968.0,3.17030529]
[1673167349782,2.46095983,16969.0,16968.0,3.17024487]
[1673167354547,2.46095983,16969.0,16968.0,3.17015072]
[1673167354802,2.47177015,16969.0,16968.0,3.17015072]
[1673167360789,2.47177015,16969.0,16968.0,3.16981719]
[1673167361861,2.47177015,16969.0,16968.0,3.16948318]
[1673167362860,2.47177015,16969.0,16968.0,3.16914965]
[1673167363882,2.47177015,16969.0,16968.0,3.16887606]
[1673167364170,2.47177015,16969.0,16968.0,3.16881564]
[1673167364878,2.47177015,16969.0,16968.0,3.16848211]
[1673167365943,2.47177015,16969.0,16968.0,3.1681481]
[1673167366994,2.47177015,16969.0,16968.0,3.16781457]
[1673167367765,2.47177015,16969.0,16968.0,3.16748056]
[1673167368753,2.47177015,16969.0,16968.0,3.16714703]
[1673167369734,2.47177015,16969.0,16968.0,3.16681302]
[1673167370744,2.47177015,16969.0,16968.0,3.16647949]
[1673167371735,2.47177015,16969.0,16968.0,3.16614548]
[1673167372752,2.47177015,16969.0,16968.0,3.16581195]
[1673167374033,2.47177015,16969.0,16968.0,3.16547794]
[1673167374816,2.47177015,16969.0,16968.0,3.1651444]
[1673167375946,2.47177015,16969.0,16968.0,3.16481039]
[1673167376786,2.47177015,16969.0,16968.0,3.16447686]
[1673167377980,2.47177015,16969.0,16968.0,3.16414285]
[1673167378728,2.47177015,16969.0,16968.0,3.16380932]
[1673167379894,2.47177015,16969.0,16968.0,3.16347531]
[1673167380927,2.47177015,16969.0,16968.0,3.16314178]
[1673167381884,2.47177015,16969.0,16968.0,3.16280777]
[1673167382891,2.47177015,16969.0,16968.0,3.16247424]
[1673167383867,2.47177015,16969.0,16968.0,3.16214023]
[1673167384873,2.47177015,16969.0,16968.0,3.1618067]
[1673167385869,2.47177015,16969.0,16968.0,3.16147269]
[1673167386818,2.47177015,16969.0,16968.0,3.16113916]
[1673167390228,2.47177015,16969.0,16968.0,3.76776216]
[1673167390485,2.47177015,16969.0,16968.0,3.16119958]
[1673167390741,2.47177015,16969.0,16968.0,3.16113916]
[1673167391246,2.47177015,16969.0,16968.0,3.76776216]
[1673167391502,2.47177015,16969.0,16968.0,3.16113916]
[1673167392024,2.47177015,16969.0,16968.0,3.76776216]
[1673167392321,2.47177015,16969.0,16968.0,3.16113916]
[1673167392780,2.47177015,16969.0,16968.0,3.76776216]
[1673167393015,2.47177015,16969.0,16968.0,3.16113916]
[1673167397187,2.47177015,16969.0,16968.0,3.16119958]
[1673167397448,2.47177015,16969.0,16968.0,3.16113916]
[1673167397694,2.47177015,16969.0,16968.0,3.76776216]
[1673167397953,2.47177015,16969.0,16968.0,3.16113916]
[1673167400423,2.47177015,16969.0,16968.0,3.16119958]
[1673167401261,2.47177015,16969.0,16968.0,3.16113916]
[1673167406114,2.47177015,16969.0,16968.0,3.16119958]
[1673167406380,2.47177015,16969.0,16968.0,3.16113916]
[1673167407942,2.47177015,16969.0,16968.0,3.16107064]
[1673167409229,2.43635346,16969.0,16968.0,3.16107064]
[1673167409494,2.47177015,16969.0,16968.0,3.16107064]
[1673167426055,2.43635346,16969.0,16968.0,3.16107064]
[1673167426589,2.47177015,16969.0,16968.0,3.16107064]
[1673167430378,2.47177015,16969.0,16968.0,3.1610052]
[1673167451120,2.46548552,16969.0,16968.0,3.1610052]
[1673167451637,3.33647011,16969.0,16968.0,3.1610052]
[1673167452914,2.46548552,16969.0,16968.0,3.1610052]
[1673167453170,3.33647011,16969.0,16968.0,3.1610052]
[1673167454477,3.49051557,16969.0,16968.0,3.1610052]
[1673167455024,4.28156053,16969.0,16968.0,3.16091867]
[1673167455538,3.79155069,16969.0,16968.0,3.16091867]
[1673167456298,3.78518557,16969.0,16968.0,3.16091867]
[1673167456871,2.91420098,16969.0,16968.0,3.16091867]
[1673167457128,2.92211967,16969.0,16968.0,3.16091867]
[1673167457685,2.92211967,16969.0,16968.0,2.85988967]
[1673167457933,2.91420098,16969.0,16968.0,2.24580367]
[1673167458969,2.90016093,16969.0,16968.0,2.24580367]
[1673167459228,2.90015093,16969.0,16968.0,2.24580367]
[1673167461006,3.4232013,16969.0,16968.0,2.24580367]
[1673167462447,3.43187762,16969.0,16968.0,2.24580367]
[1673167463194,3.4232013,16969.0,16968.0,2.24580367]
[1673167463950,3.43165676,16969.0,16968.0,2.24580367]
[1673167464462,3.4232013,16969.0,16968.0,2.24580367]
[1673167464723,4.29418589,16969.0,16968.0,2.24580367]
[1673167464972,3.4232013,16969.0,16968.0,2.24580367]
[1673167465222,3.99952589,16969.0,16968.0,2.24580367]
[1673167465482,3.43141724,16969.0,16968.0,2.24580367]
[1673167466275,3.4232013,16969.0,16968.0,2.24580367]
[1673167466503,3.43106041,16969.0,16968.0,2.24580367]
[1673167468084,2.90015093,16969.0,16968.0,2.24580367]
[1673167468594,3.18092515,16969.0,16968.0,2.24580367]
[1673167468842,4.05190974,16969.0,16968.0,2.24580367]
[1673167469099,3.18092515,16969.0,16968.0,2.24580367]
[1673167469312,4.05190974,16969.0,16968.0,2.24580367]
[1673167469866,3.18491171,16969.0,16968.0,2.24580367]
[1673167470120,4.06200984,16969.0,16968.0,2.17634234]
[1673167470627,4.0558963,16969.0,16968.0,2.17634234]
[1673167472937,4.0559063,16969.0,16968.0,2.17634234]
[1673167473219,4.06365471,16969.0,16968.0,2.17634234]
[1673167473697,4.0559063,16969.0,16968.0,2.17634234]
[1673167476862,4.0559163,16969.0,16968.0,2.17634234]
[1673167477623,4.0559163,16969.0,16968.0,0.76766234]
[1673167477866,4.0559163,16969.0,16968.0,0.76727844]
[1673167478892,4.0559163,16969.0,16968.0,0.76689454]
[1673167480041,4.0559163,16969.0,16968.0,0.76651064]
[1673167480839,4.0559163,16969.0,16968.0,0.76612674]
[1673167481349,3.77514208,16969.0,16968.0,0.76612674]
[1673167481605,3.48046208,16969.0,16968.0,0.76612674]
[1673167481854,3.77514208,16969.0,16968.0,0.76574284]
[1673167482582,4.0559163,16969.0,16968.0,0.76574284]
[1673167482797,4.0559163,16969.0,16968.0,0.76535894]
[1673167483292,3.7612363,16969.0,16968.0,0.76535894]
[1673167483553,4.0559063,16969.0,16968.0,0.76535894]
[1673167484055,4.0559063,16969.0,16968.0,0.76497504]
[1673167484831,4.0559063,16969.0,16968.0,0.76459114]
[1673167485787,4.0559063,16969.0,16968.0,0.76421044]
[1673167486860,4.0559063,16969.0,16968.0,0.76413174]
[1673167487844,4.0559063,16969.0,16968.0,0.76375104]
[1673167489368,4.0559063,16969.0,16966.0,0.62351251]
[1673167489616,0.3,16968.0,16966.0,0.62351251]
[1673167489864,0.3,16968.0,16966.0,0.61851251]
[1673167489865,2.357516,16967.0,16966.0,0.61851251]
[1673167490107,2.357516,16967.0,16966.0,0.69516452]
[1673167490108,2.40143269,16967.0,16966.0,0.69516452]
[1673167490360,2.70143269,16967.0,16966.0,0.69516452]
[1673167491117,2.81954861,16967.0,16966.0,0.69616452]
[1673167491493,2.82736528,16967.0,16966.0,0.69616452]
[1673167492028,2.82736528,16967.0,16966.0,0.69578382]
[1673167493855,2.82736528,16967.0,16966.0,0.69540311]
[1673167494921,2.82736528,16967.0,16966.0,0.69532441]
[1673167496134,2.82736528,16967.0,16966.0,0.69494371]
[1673167496889,2.82736528,16967.0,16966.0,0.69486501]
[1673167497900,2.82736528,16967.0,16966.0,0.69448431]
[1673167498938,2.82736528,16967.0,16966.0,0.69440561]
[1673167499935,2.82736528,16967.0,16966.0,0.69402491]
[1673167511102,2.82736528,16967.0,16966.0,0.69383407]
[1673167512140,2.82736528,16967.0,16966.0,0.69350144]
[1673167513146,2.82736528,16967.0,16966.0,0.6933106]
[1673167514080,2.82736528,16967.0,16966.0,0.69311976]
[1673167514585,2.82736528,16967.0,16966.0,0.68811976]
[1673167514848,2.82736528,16967.0,16966.0,0.68778713]
[1673167515923,2.82736528,16967.0,16966.0,0.68759629]
[1673167516911,2.82736528,16967.0,16966.0,0.68726366]
[1673167519951,2.82736528,16967.0,16966.0,0.68702298]
[1673167522008,2.82736528,16967.0,16966.0,0.6867823]
[1673167523016,2.82736528,16967.0,16966.0,0.68639982]
[1673167524028,2.82736528,16967.0,16966.0,0.68615914]
[1673167525027,2.82736528,16967.0,16966.0,0.68577666]
[1673167525767,2.82736528,16967.0,16966.0,0.68553598]
[1673167526795,2.82736528,16967.0,16966.0,0.68520335]
[1673167527862,2.82736528,16967.0,16966.0,0.68501251]
[1673167528877,2.82736528,16967.0,16966.0,0.68468142]
[1673167530924,2.82736528,16967.0,16966.0,0.68435033]
[1673167532939,2.82736528,16967.0,16966.0,0.68401924]
[1673167534884,2.82736528,16967.0,16966.0,0.68368815]
[1673167536929,2.79194859,16967.0,16966.0,0.68335706]
[1673167537686,2.82736528,16967.0,16966.0,0.68335706]
[1673167537937,2.82736528,16967.0,16966.0,0.683257]
[1673167538978,2.82736528,16967.0,16966.0,0.68287606]
[1673167539942,2.82736528,16967.0,16966.0,0.682776]
[1673167540991,2.82736528,16967.0,16966.0,0.68239506]
[1673167541903,2.82736528,16967.0,16966.0,0.682295]
[1673167542987,2.82736528,16967.0,16966.0,0.68197448]
[1673167543255,2.82736528,16967.0,16966.0,0.68191406]
[1673167545981,2.82736528,16967.0,16966.0,0.68197448]
[1673167546232,2.82736528,16967.0,16966.0,0.68191406]
[1673167549017,2.79194859,16967.0,16966.0,0.68191406]
[1673167558250,2.79194859,16967.0,16966.0,0.001]
[1673167558500,2.79175749,16967.0,16966.0,0.001]
[1673167561057,2.79175749,16967.0,16966.0,0.00066891]
[1673167561576,2.78413192,16967.0,16966.0,0.00066891]
[1673167561830,2.79033976,16967.0,16966.0,0.00066891]
[1673167563812,2.78413192,16967.0,16966.0,0.00066891]
[1673167564330,3.07882192,16967.0,16966.0,0.00066891]